bitfinex-derivatives/quotes_BTCF0:USTF0_20241021
["timestamp","ask_amount","ask_price","bid_price","bid_amount"]
[1729523386521,0.3618,66932.0,66925.0,0.074736]
[1729523386522,0.074735,66926.0,66925.0,0.074736]
[1729523387023,0.074735,66926.0,66925.0,0.07507283]
[1729523387207,0.435535,66926.0,66925.0,0.07507283]
[1729523387711,0.3618,66932.0,66925.0,0.00033683]
[1729523387907,0.3618,66932.0,66931.0,0.074729]
[1729523387908,0.075729,66932.0,66931.0,0.074729]
[1729523388111,0.074729,66932.0,66931.0,0.074729]
[1729523389307,0.075729,66932.0,66931.0,0.083729]
[1729523389510,0.436529,66932.0,66931.0,0.009]
[1729523390524,0.07473,66931.0,66916.0,0.00224143]
[1729523390732,0.3608,66922.0,66916.0,0.00224143]
[1729523390911,0.002,66932.0,66931.0,0.074729]
[1729523391819,0.001,66932.0,66931.0,0.074729]
[1729523392423,0.435521,66939.0,66930.0,0.3608]
[1729523392607,0.435521,66939.0,66931.0,0.009]
[1729523392811,0.3608,66939.0,66938.0,0.074722]
[1729523393524,0.3608,66947.0,66936.0,0.3608]
[1729523393719,0.074713,66946.0,66944.0,0.074715]
[1729523393908,0.074714,66945.0,66944.0,0.074715]
[1729523394718,0.3608,66947.0,66932.0,0.074728]
[1729523394719,0.001,66939.0,66932.0,0.3608]
[1729523394911,0.001,66939.0,66938.0,0.074722]
[1729523395413,0.001,66939.0,66930.0,0.02153447]
[1729523395414,0.006,66945.0,66943.0,0.074716]
[1729523395610,0.79554001,66988.0,66929.0,0.6084]
[1729523395818,0.074683,66973.0,66964.0,0.074692]
[1729523396013,0.074682,66974.0,66962.0,0.3608]
[1729523396323,0.074694,66963.0,66962.0,0.3608]
[1729523397025,0.3608,66964.0,66950.0,0.36304027]
[1729523397226,0.074698,66959.0,66954.0,0.074704]
[1729523397416,0.074699,66958.0,66954.0,0.074704]
[1729523397612,0.3608,66965.0,66950.0,0.36304027]
[1729523397813,0.001,66957.0,66950.0,0.43774827]
[1729523398012,0.074706,66953.0,66950.0,0.43774827]
[1729523398212,0.074702,66956.0,66950.0,0.36304027]
[1729523398420,0.001,66957.0,66950.0,0.36304027]
[1729523398421,0.001,66959.0,66954.0,0.007]
[1729523398618,0.074699,66958.0,66957.0,0.0747]
[1729523398923,0.074682,66974.0,66950.0,0.72384027]
[1729523399124,0.2972,66978.0,66956.0,0.435502]
[1729523399125,0.001,66957.0,66956.0,0.435502]
[1729523400122,0.0747,66958.0,66956.0,0.435502]
[1729523400309,0.001,66959.0,66954.0,0.007]
[1729523400310,0.074703,66955.0,66954.0,0.007]
[1729523401323,0.44808,66955.0,66935.0,0.0214451]
[1729523401627,0.3608,66956.0,66933.0,0.3608]
[1729523401628,0.3608,66944.0,66933.0,0.3608]
[1729523401927,0.3608,66944.0,66934.0,0.074726]
[1729523401928,0.074719,66940.0,66934.0,0.074726]
[1729523402127,0.07472,66940.0,66933.0,0.3608]
[1729523402329,0.3608,66944.0,66934.0,0.3608]
[1729523402528,0.074723,66937.0,66936.0,0.074723]
[1729523403234,0.074725,66935.0,66934.0,0.009]
[1729523403411,0.074725,66935.0,66934.0,0.083726]
[1729523403616,0.002,66940.0,66934.0,0.009]
[1729523403818,0.002,66940.0,66939.0,0.074721]
[1729523404118,0.074708,66951.0,66939.0,0.07472]
[1729523404317,0.074708,66950.0,66949.0,0.074709]
[1729523404523,0.07471,66948.0,66947.0,0.3608]
[1729523404731,0.07471,66948.0,66947.0,0.435512]
[1729523405246,0.3608,66956.0,66955.0,0.074703]
[1729523405631,0.3608,66969.0,66955.0,0.074703]
[1729523405632,0.3608,66969.0,66955.0,0.435503]
[1729523405938,0.435487,66969.0,66966.0,0.07469]
[1729523406233,0.074689,66967.0,66965.0,0.074691]
[1729523406430,0.38217395,66969.0,66958.0,0.074699]
[1729523406739,0.38217395,66969.0,66955.0,0.3608]
[1729523406919,0.074702,66956.0,66955.0,0.3608]
[1729523407125,0.38217395,66969.0,66955.0,0.3608]
[1729523407421,0.38917395,66969.0,66958.0,0.074699]
[1729523407725,0.38917395,66969.0,66955.0,0.3528]
[1729523407932,0.03659002,66968.0,66955.0,0.3528]
[1729523408130,0.38917395,66969.0,66955.0,0.3528]
[1729523408322,0.38917395,66969.0,66956.0,0.1884]
[1729523408524,0.38917395,66969.0,66962.0,0.074695]
[1729523408725,0.074691,66966.0,66964.0,0.074692]
[1729523408926,0.074691,66966.0,66956.0,0.1884]
[1729523409230,0.3608,66969.0,66957.0,0.00757213]
[1729523409434,0.074677,66979.0,66968.0,0.074688]
[1729523409631,0.3608,66983.0,66965.0,0.435491]
[1729523409632,0.001,66969.0,66965.0,0.435491]
[1729523409938,0.001,66969.0,66965.0,0.3608]
[1729523410124,0.075688,66969.0,66968.0,0.074688]
[1729523410430,0.074673,66982.0,66976.0,0.074679]
[1729523410730,0.007,66979.0,66978.0,0.074677]
[1729523410934,0.007,66979.0,66974.0,0.3608]
[1729523411131,0.07468,66975.0,66968.0,0.02096304]
[1729523411336,0.074687,66969.0,66968.0,0.02096304]
[1729523412039,0.074689,66967.0,66966.0,0.07469]
[1729523412620,0.001,66969.0,66968.0,0.078688]
[1729523412824,0.074677,66979.0,66968.0,0.078688]
[1729523413121,0.001,66969.0,66968.0,0.083688]
[1729523413322,0.001,66969.0,66968.0,0.079688]
[1729523413724,0.001,66969.0,66968.0,0.005]
[1729523413725,0.075687,66969.0,66968.0,0.005]
[1729523415136,0.07469,66966.0,66965.0,0.3608]
[1729523416430,0.07469,66966.0,66952.0,0.3608]
[1729523416740,0.074706,66952.0,66937.0,0.3608]
[1729523416938,0.074722,66938.0,66937.0,0.3608]
[1729523417125,0.074724,66936.0,66935.0,0.3608]
[1729523417833,0.074719,66941.0,66935.0,0.3608]
[1729523418039,0.074723,66937.0,66935.0,0.435525]
[1729523418728,0.1584,66951.0,66935.0,0.3608]
[1729523418931,0.074713,66946.0,66943.0,0.074716]
[1729523419130,0.1584,66951.0,66943.0,0.074716]
[1729523419345,0.1584,66951.0,66941.0,0.3608]
[1729523419540,0.074715,66944.0,66941.0,0.3608]
[1729523419843,0.3608,66952.0,66941.0,0.3608]
[1729523420142,0.3608,66952.0,66951.0,0.074707]
[1729523420345,0.074702,66956.0,66949.0,0.3608]
[1729523420542,0.1585,66964.0,66955.0,0.3608]
[1729523420731,4e-05,66966.0,66965.0,0.074692]
[1729523421051,4e-05,66966.0,66962.0,0.3608]
[1729523421235,0.074731,66966.0,66962.0,0.3608]
[1729523421535,0.074731,66966.0,66965.0,0.074692]
[1729523421935,0.074731,66966.0,66962.0,0.435495]
[1729523422133,0.00104,66966.0,66965.0,0.002]
[1729523422341,0.00104,66966.0,66965.0,0.076692]
[1729523422535,0.00104,66966.0,66965.0,0.068692]
[1729523422941,4e-05,66966.0,66965.0,0.068692]
[1729523423137,0.00104,66966.0,66965.0,0.074692]
[1729523423344,0.00104,66966.0,66965.0,0.006]
[1729523423532,0.07573,66966.0,66965.0,0.006]
[1729523424545,0.07473,66966.0,66965.0,0.004]
[1729523424745,0.07573,66966.0,66965.0,0.004]
[1729523425260,0.00269369,66969.0,66968.0,0.074688]
[1729523425445,0.07469,66966.0,66965.0,0.3658]
[1729523425649,0.07569,66966.0,66965.0,0.3658]
[1729523425842,0.074704,66954.0,66953.0,0.3608]
[1729523426042,0.074706,66952.0,66945.0,0.5492]
[1729523426248,0.074706,66952.0,66939.0,0.07472]
[1729523426438,0.074706,66952.0,66927.0,0.590634]
[1729523426439,0.074706,66952.0,66935.0,0.1884]
[1729523427350,0.3608,66954.0,66938.0,0.074721]
[1729523427351,0.074715,66944.0,66938.0,0.074721]
[1729523427547,0.3608,66948.0,66935.0,0.1884]
[1729523427751,0.074716,66943.0,66935.0,0.1884]
[1729523427949,0.074707,66951.0,66940.0,0.074719]
[1729523428148,0.074719,66940.0,66939.0,0.3608]
[1729523428755,0.074721,66939.0,66938.0,0.007]
[1729523429253,0.074721,66939.0,66935.0,0.012]
[1729523429456,0.074721,66939.0,66938.0,0.074722]
[1729523430043,0.002,66940.0,66939.0,0.074721]
[1729523430243,0.076719,66940.0,66939.0,0.074721]
[1729523430845,0.075719,66940.0,66939.0,0.074721]
[1729523431356,0.074716,66943.0,66939.0,0.3608]
[1729523431654,0.1485,66958.0,66939.0,0.3608]
[1729523431958,0.435496,66961.0,66955.0,0.0747]
[1729523431959,0.074703,66956.0,66955.0,0.0747]
[1729523432556,0.3608,66961.0,66953.0,0.3608]
[1729523432853,0.074698,66959.0,66958.0,0.074699]
[1729523433249,0.074703,66955.0,66954.0,0.074703]
[1729523433643,0.074698,66960.0,66959.0,0.074697]
[1729523434453,0.074698,66960.0,66955.0,0.3608]
[1729523434454,0.074701,66957.0,66955.0,0.435502]
[1729523434859,0.074701,66957.0,66956.0,0.074702]
[1729523435658,0.074697,66961.0,66955.0,0.3608]
[1729523435960,0.074693,66964.0,66963.0,0.074693]
[1729523436160,0.1582,66968.0,66956.0,0.18404]
[1729523436348,0.074697,66961.0,66960.0,0.074696]
[1729523436656,0.1582,66968.0,66956.0,0.18404]
[1729523436957,0.074692,66965.0,66956.0,0.18404]
[1729523437359,0.074692,66965.0,66964.0,0.074693]
[1729523437572,0.232888,66968.0,66967.0,0.074689]
[1729523437952,0.074692,66965.0,66962.0,0.074694]
[1729523438148,0.1582,66968.0,66956.0,0.18344037]
[1729523438456,0.1582,66968.0,66960.0,0.001]
[1729523438647,0.07469,66967.0,66964.0,0.074692]
[1729523438852,0.00269369,66969.0,66960.0,0.075697]
[1729523439054,0.00269369,66969.0,66968.0,0.435488]
[1729523440061,0.00369369,66969.0,66968.0,0.435488]
[1729523440961,0.00369369,66969.0,66968.0,0.619488]
[1729523441151,0.07838069,66969.0,66968.0,0.5458]
[1729523441348,0.07838069,66969.0,66968.0,0.620488]
[1729523441655,0.00269369,66969.0,66968.0,0.622488]
[1729523441858,0.07738069,66969.0,66968.0,0.622488]
[1729523442282,0.07738069,66969.0,66968.0,0.64562188]
[1729523443754,0.00269369,66969.0,66968.0,0.64562188]
[1729523444271,0.07738069,66969.0,66968.0,0.57093388]
[1729523445161,0.07738069,66969.0,66968.0,0.38693388]
[1729523446560,0.07738069,66969.0,66968.0,0.46162188]
[1729523446755,0.06738069,66969.0,66968.0,0.46162188]
[1729523447767,0.06738069,66969.0,66968.0,0.38693388]
[1729523449353,0.06738069,66969.0,66968.0,0.46162188]
[1729523451580,0.06738069,66969.0,66952.0,7.2e-07]
[1729523451581,0.074705,66953.0,66952.0,7.2e-07]
[1729523451870,0.074705,66953.0,66927.0,0.074733]
[1729523451871,0.074734,66928.0,66927.0,0.074733]
[1729523452259,0.3608,66936.0,66927.0,0.4484652]
[1729523452459,0.19184837,66976.0,66932.0,0.2476]
[1729523452460,0.074715,66945.0,66932.0,0.2476]
[1729523452659,0.3608,66952.0,66939.0,0.3608]
[1729523452871,0.074709,66950.0,66940.0,0.18396]
[1729523453075,0.001,66953.0,66952.0,0.074706]
[1729523453266,0.3608,66969.0,66953.0,0.2476]
[1729523453466,0.3608,66969.0,66965.0,0.074691]
[1729523453661,0.3608,66969.0,66957.0,0.3528]
[1729523453662,0.074693,66964.0,66963.0,0.00765107]
[1729523453861,0.3608,66969.0,66961.0,0.18396]
[1729523454057,0.074695,66962.0,66961.0,0.18396]
[1729523454672,0.3658,66969.0,66961.0,0.18396]
[1729523454857,0.074692,66965.0,66964.0,0.074693]
[1729523455061,0.074689,66968.0,66967.0,0.074688]
[1729523455258,0.00841143,66975.0,66968.0,0.2476]
[1729523455469,0.00841143,66975.0,66974.0,0.074681]
[1729523455874,0.00841143,66975.0,66974.0,1.122601]
[1729523456078,0.00841143,66975.0,66974.0,0.258641]
[1729523456464,0.00841143,66975.0,66974.0,0.706561]
[1729523456663,0.00841143,66975.0,66974.0,0.72939679]
[1729523457463,0.00941143,66975.0,66974.0,0.72939679]
[1729523457872,0.00941143,66975.0,66974.0,0.28147679]
[1729523457873,0.08409143,66975.0,66974.0,0.28147679]
[1729523458070,0.00941143,66975.0,66974.0,0.54543679]
[1729523458266,0.00941143,66975.0,66974.0,0.72939679]
[1729523458267,0.01141143,66975.0,66974.0,0.72939679]
[1729523458764,0.01141143,66975.0,66974.0,0.28147679]
[1729523458966,0.00568526,66977.0,66976.0,0.074679]
[1729523460067,0.00568526,66977.0,66976.0,0.522599]
[1729523460286,0.00811966,66979.0,66978.0,0.074677]
[1729523460471,0.00811966,66979.0,66976.0,0.01]
[1729523460675,0.00811966,66979.0,66977.0,0.17932]
[1729523460974,0.00811966,66979.0,66978.0,0.074677]
[1729523461476,0.08379566,66979.0,66978.0,0.263957]
[1729523461672,0.00911966,66979.0,66978.0,0.263957]
[1729523461872,0.01011966,66979.0,66978.0,0.263957]
[1729523462177,0.08479566,66979.0,66978.0,0.263957]
[1729523462675,0.01011966,66979.0,66978.0,0.263957]
[1729523462979,0.08479566,66979.0,66978.0,0.084677]
[1729523463180,0.01011966,66979.0,66978.0,0.263957]
[1729523464065,0.01580584,66983.0,66978.0,0.6502]
[1729523464264,0.38685639,66996.0,66986.0,0.074668]
[1729523464465,0.38685639,66996.0,66982.0,0.3608]
[1729523464466,0.09991664,66990.0,66982.0,0.3608]
[1729523464666,0.074674,66981.0,66980.0,0.074674]
[1729523465471,0.002,66983.0,66982.0,0.074673]
[1729523465669,0.076671,66983.0,66982.0,0.074673]
[1729523466567,0.074676,66979.0,66978.0,0.023]
[1729523466766,0.435476,66979.0,66978.0,0.023]
[1729523467370,0.435476,66979.0,66978.0,0.01]
[1729523467564,0.074681,66976.0,66975.0,0.074678]
[1729523467968,0.3608,66979.0,66972.0,0.00223922]
[1729523467969,0.074683,66973.0,66972.0,0.00223922]
[1729523468171,0.074683,66973.0,66958.0,0.074699]
[1729523468172,0.074699,66959.0,66958.0,0.074699]
[1729523468568,0.074695,66963.0,66962.0,0.074694]
[1729523468882,0.074698,66959.0,66958.0,0.253979]
[1729523469775,0.3608,66964.0,66951.0,0.00224036]
[1729523469776,0.074699,66958.0,66951.0,0.00224036]
[1729523469980,0.435506,66952.0,66951.0,0.00224036]
[1729523470276,0.435506,66952.0,66937.0,0.074722]
[1729523470277,0.3608,66952.0,66937.0,0.074722]
[1729523470478,0.074732,66931.0,66930.0,0.07473]
[1729523470776,0.3608,66943.0,66921.0,0.3608]
[1729523470777,0.3608,66937.0,66923.0,0.17928]
[1729523471179,0.074737,66924.0,66923.0,0.07518646]
[1729523471384,0.3608,66924.0,66921.0,0.09764322]
[1729523471572,0.074739,66922.0,66921.0,0.09764322]
[1729523471972,0.3608,66931.0,66921.0,0.09764322]
[1729523471973,0.1602,66936.0,66921.0,0.0231255]
[1729523472177,0.3628,66937.0,66923.0,0.024]
[1729523472375,0.074725,66935.0,66933.0,0.074727]
[1729523472575,0.002,66937.0,66936.0,0.074724]
[1729523473167,0.074708,66950.0,66949.0,0.074709]
[1729523474176,0.074712,66947.0,66945.0,0.074713]
[1729523474475,0.074712,66947.0,66943.0,0.17932]
[1729523474677,0.074712,66947.0,66946.0,0.074713]
[1729523475377,0.074712,66947.0,66914.0,0.0446226]
[1729523475378,0.074728,66934.0,66933.0,0.074727]
[1729523475578,0.3608,66934.0,66916.0,0.36304126]
[1729523475782,0.074736,66926.0,66925.0,0.074736]
[1729523475982,0.3608,66928.0,66927.0,0.074734]
[1729523476171,0.435533,66928.0,66927.0,0.074734]
[1729523476573,0.1616,66933.0,66927.0,0.00011357]
[1729523476780,0.074729,66932.0,66927.0,0.00011357]
[1729523476974,0.074729,66932.0,66931.0,0.074729]
[1729523477986,0.074729,66932.0,66924.0,0.3608]
[1729523478176,0.3608,66934.0,66927.0,0.17936]
[1729523478371,0.3608,66934.0,66925.0,0.00011358]
[1729523478372,0.074735,66926.0,66925.0,0.00011358]
[1729523478690,0.074737,66924.0,66921.0,0.17958325]
[1729523478981,0.074737,66924.0,66921.0,0.17936]
[1729523479290,0.074737,66924.0,66922.0,0.00134154]
[1729523479490,0.001,66932.0,66922.0,0.00134154]
[1729523479784,0.074734,66928.0,66922.0,0.00134154]
[1729523479982,0.074734,66928.0,66926.0,0.074735]
[1729523480182,0.074734,66927.0,66922.0,0.00134154]
[1729523480378,0.074735,66926.0,66923.0,0.254098]
[1729523480780,0.074738,66923.0,66922.0,0.013]
[1729523481286,0.074738,66923.0,66922.0,0.00022328]
[1729523481494,0.074738,66923.0,66922.0,0.013]
[1729523481794,0.074738,66923.0,66922.0,0.01378333]
[1729523481983,0.074735,66926.0,66922.0,0.37458333]
[1729523482176,0.001,66927.0,66922.0,0.37458333]
[1729523482475,0.001,66923.0,66922.0,0.46132233]
[1729523483387,0.075738,66923.0,66922.0,0.38658333]
[1729523483582,0.075738,66923.0,66922.0,0.46132233]
[1729523483888,0.001,66923.0,66922.0,0.46132233]
[1729523484189,0.002,66923.0,66922.0,0.64072233]
[1729523484483,0.3608,66934.0,66930.0,0.074728]
[1729523484484,0.07473,66931.0,66930.0,0.074728]
[1729523484983,0.3608,66934.0,66922.0,0.098739]
[1729523484984,0.074738,66923.0,66922.0,0.098739]
[1729523485178,0.074738,66923.0,66922.0,0.266139]
[1729523485375,0.075738,66923.0,66922.0,0.62783208]
[1729523485574,0.002,66923.0,66922.0,0.64083208]
[1729523485981,0.002,66923.0,66922.0,0.66385769]
[1729523486283,0.076738,66923.0,66922.0,0.30305769]
[1729523488188,0.076738,66923.0,66922.0,0.02589308]
[1729523489492,0.076738,66923.0,66922.0,0.10063208]
[1729523490278,0.076738,66923.0,66922.0,0.02589308]
[1729523490789,0.076738,66923.0,66922.0,0.10063208]
[1729523491597,0.002,66923.0,66922.0,0.10063208]
[1729523491989,0.076738,66923.0,66922.0,0.10063208]
[1729523492691,0.002,66923.0,66922.0,0.28499208]
[1729523492880,0.3608,66939.0,66922.0,0.73327208]
[1729523493077,0.3608,66939.0,66928.0,0.3608]
[1729523493288,0.074726,66935.0,66934.0,0.074725]
[1729523493491,0.3608,66939.0,66928.0,0.3608]
[1729523493688,0.074721,66939.0,66938.0,0.074722]
[1729523494000,0.074718,66943.0,66942.0,0.074717]
[1729523494691,0.074718,66943.0,66942.0,0.259077]
[1729523495389,0.074718,66943.0,66942.0,0.18436]
[1729523495589,0.076718,66943.0,66942.0,0.18436]
[1729523495894,0.076718,66943.0,66928.0,0.3608]
[1729523495895,0.074728,66933.0,66928.0,0.3608]
[1729523496089,0.074728,66934.0,66933.0,0.074727]
[1729523496793,0.003,66943.0,66928.0,0.3608]
[1729523497001,0.003,66943.0,66920.0,0.074742]
[1729523497002,0.074743,66921.0,66920.0,0.074742]
[1729523497186,0.074741,66921.0,66920.0,0.18436]
[1729523497385,0.074741,66921.0,66920.0,0.00178812]
[1729523497888,0.074738,66925.0,66924.0,0.074737]
[1729523498088,0.074738,66925.0,66920.0,0.00178812]
[1729523498089,0.3608,66926.0,66920.0,0.00178812]
[1729523498286,0.074737,66924.0,66923.0,0.074737]
[1729523498685,0.3083,66931.0,66925.0,0.074735]
[1729523498889,0.001,66921.0,66920.0,0.087742]
[1729523499188,0.435522,66938.0,66920.0,0.087742]
[1729523499189,0.074732,66929.0,66920.0,0.27266022]
[1729523499389,0.074732,66929.0,66928.0,0.074733]
[1729523499593,0.074729,66932.0,66926.0,0.074735]
[1729523499798,0.3608,66938.0,66925.0,0.3608]
[1729523499991,0.074731,66930.0,66929.0,0.074731]
[1729523501098,0.074731,66930.0,66929.0,0.259091]
[1729523501699,0.074731,66930.0,66929.0,0.29190708]
[1729523502006,0.074731,66930.0,66929.0,0.30190708]
[1729523502007,0.076731,66930.0,66929.0,0.30190708]
[1729523502998,0.076731,66930.0,66929.0,0.11754708]
[1729523503194,0.076731,66930.0,66929.0,0.30190708]
[1729523503994,0.002,66930.0,66929.0,0.30190708]
[1729523505992,0.3608,66944.0,66929.0,0.67541608]
[1729523505993,0.074717,66943.0,66929.0,0.67541608]
[1729523506194,0.074717,66943.0,66934.0,0.3608]
[1729523506986,0.074717,66943.0,66942.0,0.074716]
[1729523507189,0.075717,66943.0,66942.0,0.074716]
[1729523507796,0.001,66943.0,66942.0,0.074716]
[1729523508099,0.3608,66951.0,66947.0,0.074711]
[1729523508306,0.074713,66948.0,66947.0,0.259071]
[1729523510599,0.074713,66948.0,66947.0,0.082711]
[1729523510903,0.075713,66948.0,66947.0,0.275071]
[1729523511105,0.001,66948.0,66947.0,0.28239184]
[1729523511305,0.07571,66948.0,66947.0,0.02332084]
[1729523511604,0.07571,66948.0,66947.0,0.20036]
[1729523512004,0.001,66948.0,66947.0,0.28257396]
[1729523513497,0.001,66948.0,66947.0,0.275032]
[1729523513696,0.001,66948.0,66947.0,0.523132]
[1729523513902,0.001,66948.0,66947.0,0.275032]
[1729523514098,0.44912,66948.0,66929.0,0.3608]
[1729523514404,0.44912,66948.0,66930.0,0.07473]
[1729523514405,0.074724,66936.0,66930.0,0.07473]
[1729523514608,0.3608,66940.0,66939.0,0.074721]
[1729523515312,0.3608,66940.0,66930.0,0.07473]
[1729523515506,0.1634,66939.0,66929.0,0.38867022]
[1729523515710,0.1634,66939.0,66938.0,0.074722]
[1729523517407,0.325,66939.0,66938.0,0.081722]
[1729523518417,0.326,66939.0,66938.0,0.088722]
[1729523519610,0.326,66939.0,66938.0,0.081722]
[1729523519911,0.326,66939.0,66938.0,0.088722]
[1729523520512,0.325,66939.0,66938.0,0.081722]
[1729523520698,0.002,66939.0,66938.0,0.087722]
[1729523521313,0.002,66939.0,66938.0,0.089722]
[1729523521517,0.1623,66955.0,66938.0,0.089722]
[1729523521518,0.02284567,66953.0,66948.0,0.07471]
[1729523521719,0.1623,66955.0,66954.0,0.074704]
[1729523522612,0.1623,66955.0,66938.0,0.40152806]
[1729523522613,0.1623,66955.0,66947.0,0.00739772]
[1729523522814,0.3608,66949.0,66940.0,0.00224073]
[1729523523020,0.074718,66941.0,66940.0,0.00224073]
[1729523523611,0.231018,66941.0,66940.0,0.00224073]
[1729523524003,0.231018,66941.0,66927.0,0.1792]
[1729523524004,0.074732,66929.0,66924.0,0.3608]
[1729523524199,0.074719,66940.0,66925.0,0.074735]
[1729523524200,0.074733,66928.0,66925.0,0.074735]
[1729523524420,0.3608,66926.0,66915.0,0.00224118]
[1729523524616,0.3608,66917.0,66915.0,0.00224118]
[1729523524806,0.3608,66917.0,66916.0,0.00011164]
[1729523525002,0.3608,66926.0,66925.0,0.074736]
[1729523525214,0.3608,66931.0,66930.0,0.074731]
[1729523525408,0.074725,66935.0,66925.0,0.00011162]
[1729523525616,0.1523,66939.0,66925.0,0.1792]
[1729523525917,0.001,66929.0,66925.0,0.1792]
[1729523526117,0.001,66929.0,66928.0,0.074733]
[1729523526616,0.3608,66954.0,66928.0,0.435533]
[1729523526818,0.074706,66952.0,66943.0,0.3608]
[1729523527027,0.074706,66952.0,66951.0,0.074707]
[1729523527219,0.3608,66961.0,66950.0,0.3608]
[1729523527421,0.0747,66958.0,66957.0,0.0747]
[1729523527721,0.0747,66958.0,66943.0,0.44304291]
[1729523527722,0.3608,66961.0,66947.0,0.3608]
[1729523528022,0.004,66952.0,66946.0,0.1792]
[1729523528219,0.004,66952.0,66946.0,0.253913]
[1729523528424,0.074711,66948.0,66946.0,0.253913]
[1729523528716,0.074712,66947.0,66946.0,0.074713]
[1729523528921,0.074712,66947.0,66946.0,0.253913]
[1729523529110,0.074715,66945.0,66943.0,0.09726253]
[1729523529312,0.074715,66945.0,66944.0,0.1792]
[1729523529521,0.3608,66953.0,66939.0,0.02298199]
[1729523529711,0.074719,66940.0,66939.0,0.07472]
[1729523530412,0.074716,66944.0,66943.0,0.074716]
[1729523530611,0.3618,66947.0,66945.0,0.074714]
[1729523530812,0.3628,66947.0,66946.0,0.082713]
[1729523531210,0.002,66947.0,66946.0,0.082713]
[1729523531412,0.001,66947.0,66946.0,0.074713]
[1729523531726,0.074717,66943.0,66942.0,0.074716]
[1729523531906,0.075712,66947.0,66946.0,0.074713]
[1729523532113,0.3608,66953.0,66952.0,0.074706]
[1729523532615,0.1452,66957.0,66952.0,0.074706]
[1729523532825,0.3608,66960.0,66958.0,0.074698]
[1729523532826,0.074698,66959.0,66958.0,0.074698]
[1729523534119,0.074703,66956.0,66954.0,0.074703]
[1729523534313,0.074703,66956.0,66955.0,0.074703]
[1729523534507,0.074703,66956.0,66952.0,0.004]
[1729523534508,0.074705,66953.0,66952.0,0.004]
[1729523534721,0.435505,66953.0,66952.0,0.004]
[1729523534920,0.435505,66953.0,66952.0,0.077706]
[1729523535226,0.435505,66953.0,66952.0,0.074706]
[1729523535720,0.3608,66953.0,66952.0,0.074706]
[1729523536429,0.3608,66953.0,66952.0,0.077706]
[1729523536920,0.3608,66953.0,66952.0,0.078706]
[1729523537715,0.435505,66953.0,66952.0,0.078706]
[1729523538114,0.435505,66953.0,66952.0,0.004]
[1729523538721,0.3608,66953.0,66952.0,0.004]
[1729523538920,0.3608,66953.0,66952.0,0.078706]
[1729523539522,0.435505,66953.0,66952.0,0.078706]
[1729523539725,0.435505,66953.0,66937.0,0.00224086]
[1729523539726,1.483585,66953.0,66937.0,0.00224086]
[1729523539917,0.435522,66938.0,66937.0,0.00224086]
[1729523540927,0.435522,66938.0,66937.0,0.01024086]
[1729523541324,0.435522,66938.0,66937.0,0.008]
[1729523541627,0.436522,66938.0,66937.0,0.014]
[1729523542326,0.436522,66938.0,66937.0,0.008]
[1729523542519,0.437522,66938.0,66937.0,0.014]
[1729523543114,1.77176,66938.0,66921.0,0.1792]
[1729523543329,0.074737,66924.0,66921.0,0.02296641]
[1729523543723,0.074737,66924.0,66923.0,0.00291094]
[1729523544320,0.074737,66924.0,66923.0,0.08364894]
[1729523544924,0.001,66924.0,66923.0,0.0874078]
[1729523545612,0.002,66924.0,66923.0,0.0126698]
[1729523545813,0.076737,66924.0,66923.0,0.0126698]
[1729523546539,0.076737,66924.0,66923.0,0.0874078]
[1729523547020,0.076737,66924.0,66923.0,0.0794078]
[1729523548122,0.074733,66929.0,66923.0,0.0794078]
[1729523548422,0.074718,66941.0,66923.0,0.0794078]
[1729523548423,0.3608,66953.0,66932.0,0.00224048]
[1729523548632,0.074709,66950.0,66948.0,0.07471]
[1729523548819,0.074709,66949.0,66948.0,0.07471]
[1729523549227,0.3608,66953.0,66945.0,0.074714]
[1729523549424,0.3608,66953.0,66947.0,0.074711]
[1729523549626,0.3608,66953.0,66933.0,0.1459]
[1729523549922,0.3608,66941.0,66927.0,0.3608]
[1729523550231,0.074722,66938.0,66937.0,0.074722]
[1729523550429,0.074727,66933.0,66932.0,0.17364048]
[1729523550628,0.074727,66933.0,66932.0,0.07696848]
[1729523551434,0.074727,66933.0,66932.0,0.00224048]
[1729523551620,0.3608,66935.0,66932.0,0.00224048]
[1729523551821,0.435527,66935.0,66934.0,0.074726]
[1729523552432,0.3608,66935.0,66932.0,0.00224048]
[1729523552630,0.074727,66933.0,66932.0,0.07696648]
[1729523553538,0.075727,66933.0,66932.0,0.07696648]
[1729523553732,0.001,66933.0,66932.0,0.07696648]
[1729523554328,0.075727,66933.0,66932.0,0.07696648]
[1729523554730,0.076727,66933.0,66932.0,0.07796648]
[1729523555523,0.076727,66933.0,66932.0,0.00324048]
[1729523557027,0.076727,66933.0,66932.0,0.07796848]
[1729523557425,1.0502,66933.0,66909.0,0.36304158]
[1729523557622,0.074744,66919.0,66918.0,0.074743]
[1729523558022,0.3608,66920.0,66919.0,0.074743]
[1729523558422,0.074729,66932.0,66922.0,0.074737]
[1729523558423,0.074739,66923.0,66922.0,0.074737]
[1729523558627,0.074737,66926.0,66925.0,0.074735]
[1729523558835,0.074734,66928.0,66927.0,0.074733]
[1729523559731,0.3608,66929.0,66919.0,0.01833241]
[1729523560037,0.074735,66927.0,66926.0,0.074734]
[1729523560632,0.074741,66922.0,66921.0,0.07474]
[1729523560833,0.435541,66922.0,66921.0,0.07474]
[1729523561634,0.3608,66922.0,66921.0,0.07518656]
[1729523562130,0.3618,66922.0,66921.0,0.07518656]
[1729523562541,0.3618,66922.0,66921.0,0.06718656]
[1729523562741,0.436539,66922.0,66921.0,0.00044656]